[Event "*** Titled Tuesday Blitz"]
[Site "Chess.com"]
[Date "2021.03.30"]
[Round "4"]
[White "KNCP_719"]
[Black "Mihnea2017"]
[Result "1-0"]
[WhiteElo "2631"]
[BlackElo "2465"]
[TimeControl "180+1"]
[EndTime "10:40:42 PDT"]
[Termination "KNCP_719 won by resignation"]

1. e4 {[%clk 0:03:00.9]} 1... c6 {[%clk 0:02:59.7]} 2. c4 {[%clk 0:03:00.9]}
2... d5 {[%clk 0:02:58.2]} 3. cxd5 {[%clk 0:03:01.8]} 3... cxd5 {[%clk
0:02:58.8]} 4. exd5 {[%clk 0:03:02.7]} 4... Nf6 {[%clk 0:02:58.5]} 5. Qa4+
{[%clk 0:03:03.1]} 5... Nbd7 {[%clk 0:02:46.2]} 6. Nc3 {[%clk 0:03:03.5]} 6...
a6 {[%clk 0:02:40.5]} 7. Nf3 {[%clk 0:03:03.2]} 7... g6 {[%clk 0:02:40.5]} 8. d4
{[%clk 0:02:55.8]} 8... Bg7 {[%clk 0:02:40.3]} 9. Bd3 {[%clk 0:02:55.3]} 9...
O-O {[%clk 0:02:40.2]} 10. O-O {[%clk 0:02:55.9]} 10... Nb6 {[%clk 0:02:36.6]}
11. Qa3 {[%clk 0:02:52.1]} 11... Nbxd5 {[%clk 0:02:36.2]} 12. Re1 {[%clk
0:02:52.3]} 12... b5 {[%clk 0:02:27.5]} 13. Bxb5 {[%clk 0:02:20.3]} 13... Bb7
{[%clk 0:01:57.7]} 14. Be2 {[%clk 0:02:14.9]} 14... Rc8 {[%clk 0:01:52.9]} 15.
Bg5 {[%clk 0:02:11.6]} 15... Qb6 {[%clk 0:01:47.2]} 16. Na4 {[%clk 0:02:04.1]}
16... Qa5 {[%clk 0:01:38.9]} 17. Nc5 {[%clk 0:02:00.4]} 17... Qxa3 {[%clk
0:01:38.1]} 18. bxa3 {[%clk 0:02:01.3]} 18... Rxc5 {[%clk 0:01:33.9]} 19. dxc5
{[%clk 0:01:59.7]} 19... Ne4 {[%clk 0:01:34.5]} 20. Rab1 {[%clk 0:01:53.9]}
20... Nxc5 {[%clk 0:01:26.4]} 21. Rec1 {[%clk 0:01:38.5]} 21... Nc3 {[%clk
0:01:26.3]} 22. Rxc3 {[%clk 0:01:04.9]} 22... Bxc3 {[%clk 0:01:25.1]} 23. Bxe7
{[%clk 0:01:05.5]} 23... Bxf3 {[%clk 0:01:18]} 24. Bxf8 {[%clk 0:00:38.2]} 24...
Bxe2 {[%clk 0:01:06.3]} 25. Bxc5 {[%clk 0:00:37.6]} 25... Kg7 {[%clk 0:01:05.1]}
26. Rc1 {[%clk 0:00:18.9]} 26... Bf6 {[%clk 0:00:59]} 27. Bb4 {[%clk 0:00:19.2]}
27... Bd8 {[%clk 0:00:53.2]} 28. Re1 {[%clk 0:00:17.8]} 28... Bb5 {[%clk
0:00:51.3]} 29. Bc3+ {[%clk 0:00:18.1]} 29... f6 {[%clk 0:00:51.2]} 30. Rd1
{[%clk 0:00:17.4]} 30... Bb6 {[%clk 0:00:48.4]} 31. Rd6 {[%clk 0:00:15.1]} 31...
Bc5 {[%clk 0:00:46.8]} 32. Rd2 {[%clk 0:00:07.5]} 32... Bxa3 {[%clk 0:00:44.2]}
33. h3 {[%clk 0:00:08]} 33... Kf7 {[%clk 0:00:43.8]} 34. Bb2 {[%clk 0:00:06.9]}
34... Bb4 {[%clk 0:00:42.7]} 35. Rc2 {[%clk 0:00:07.4]} 35... Bd6 {[%clk
0:00:41.3]} 36. Bc1 {[%clk 0:00:06.6]} 36... Ke6 {[%clk 0:00:37]} 37. Be3 {[%clk
0:00:07]} 37... g5 {[%clk 0:00:36.3]} 38. Rc8 {[%clk 0:00:06.6]} 38... h5 {[%clk
0:00:33]} 39. Rh8 {[%clk 0:00:05.9]} 39... h4 {[%clk 0:00:33.3]} 40. Ra8 {[%clk
0:00:04.8]} 40... Kd5 {[%clk 0:00:31.7]} 41. Rd8 {[%clk 0:00:03.9]} 41... Kc6
{[%clk 0:00:29.6]} 42. Rc8+ {[%clk 0:00:03.7]} 42... Kd5 {[%clk 0:00:29.3]} 43.
Rh8 {[%clk 0:00:03.8]} 43... Be5 {[%clk 0:00:29.1]} 44. Rd8+ {[%clk 0:00:03.7]}
44... Kc4 {[%clk 0:00:28.9]} 45. Rd2 {[%clk 0:00:02.4]} 45... a5 {[%clk
0:00:27.8]} 46. Rc2+ {[%clk 0:00:02.7]} 46... Kd3 {[%clk 0:00:25]} 47. Rd2+
{[%clk 0:00:02.8]} 47... Kc3 {[%clk 0:00:24.7]} 48. Rd1 {[%clk 0:00:02.9]} 48...
a4 {[%clk 0:00:18.7]} 49. Rc1+ {[%clk 0:00:02.1]} 49... Kb2 {[%clk 0:00:18.9]}
50. Rc5 {[%clk 0:00:01.9]} 50... Bd7 {[%clk 0:00:17.8]} 51. Rc7 {[%clk
0:00:01.7]} 51... Be6 {[%clk 0:00:16.6]} 52. Ra7 {[%clk 0:00:01.8]} 52... a3
{[%clk 0:00:16.2]} 53. Bc5 {[%clk 0:00:01.8]} 53... Kxa2 {[%clk 0:00:15.7]} 54.
Bxa3 {[%clk 0:00:02.3]} 54... Kb3 {[%clk 0:00:15.7]} 55. Be7 {[%clk 0:00:02.9]}
55... Kc4 {[%clk 0:00:15.5]} 56. Ra6 {[%clk 0:00:03.4]} 56... Kd5 {[%clk
0:00:15.7]} 57. Ra5+ {[%clk 0:00:03.9]} 57... Ke4 {[%clk 0:00:15.8]} 58. Ra6
{[%clk 0:00:04.3]} 58... Kf5 {[%clk 0:00:16.2]} 59. Bd6 {[%clk 0:00:04.6]} 59...
Bd4 {[%clk 0:00:16.1]} 60. Ra5+ {[%clk 0:00:04.9]} 60... Ke4 {[%clk 0:00:15.4]}
61. Ra4 {[%clk 0:00:05.1]} 61... Kd5 {[%clk 0:00:15.5]} 62. Be7 {[%clk 0:00:05]}
62... Be5 {[%clk 0:00:15.7]} 63. Bd8 {[%clk 0:00:04.7]} 63... Bf7 {[%clk
0:00:14.8]} 64. Ra5+ {[%clk 0:00:04.9]} 64... Ke6 {[%clk 0:00:14.9]} 65. Ra6+
{[%clk 0:00:05.5]} 65... Kf5 {[%clk 0:00:15.5]} 66. Ra7 {[%clk 0:00:05.5]} 66...
Be6 {[%clk 0:00:15.5]} 67. Bc7 {[%clk 0:00:05.9]} 67... Bd4 {[%clk 0:00:15.5]}
68. Ra4 {[%clk 0:00:05.5]} 68... Bc3 {[%clk 0:00:12.4]} 69. Ra3 {[%clk
0:00:04.8]} 69... Bb2 {[%clk 0:00:11.4]} 70. Rf3+ {[%clk 0:00:04.4]} 70... Kg6
{[%clk 0:00:11.2]} 71. Bd8 {[%clk 0:00:04.5]} 71... Be5 {[%clk 0:00:10.9]} 72.
Re3 {[%clk 0:00:04.7]} 72... Bd4 {[%clk 0:00:11]} 73. Rxe6 {[%clk 0:00:04.5]}
1-0

[Event "*** Titled Tuesday Blitz"]
[Site "Chess.com"]
[Date "2021.03.30"]
[Round "4"]
[White "petincash"]
[Black "ljuks68"]
[Result "0-1"]
[WhiteElo "2293"]
[BlackElo "2479"]
[TimeControl "180+1"]
[EndTime "10:40:42 PDT"]
[Termination "ljuks68 won on time"]

1. e4 {[%clk 0:03:00.9]} 1... e6 {[%clk 0:02:59.6]} 2. d4 {[%clk 0:03:00.1]}
2... d5 {[%clk 0:02:59.9]} 3. Nc3 {[%clk 0:03:00.5]} 3... Bb4 {[%clk 0:02:59.4]}
4. exd5 {[%clk 0:03:00.3]} 4... exd5 {[%clk 0:02:58.5]} 5. Bd3 {[%clk
0:03:00.8]} 5... Nf6 {[%clk 0:02:58.7]} 6. Ne2 {[%clk 0:02:48.9]} 6... O-O
{[%clk 0:02:58]} 7. O-O {[%clk 0:02:48.6]} 7... Bg4 {[%clk 0:02:57.5]} 8. f3
{[%clk 0:02:42.9]} 8... Bh5 {[%clk 0:02:57.1]} 9. Nf4 {[%clk 0:02:31.8]} 9...
Bg6 {[%clk 0:02:56.6]} 10. Nxg6 {[%clk 0:02:31.3]} 10... hxg6 {[%clk 0:02:56.1]}
11. Ne2 {[%clk 0:02:29.1]} 11... c6 {[%clk 0:02:52.1]} 12. c3 {[%clk 0:02:18.2]}
12... Bd6 {[%clk 0:02:51.1]} 13. Qb3 {[%clk 0:02:07.5]} 13... Qc7 {[%clk
0:02:49.4]} 14. g3 {[%clk 0:02:02]} 14... Nbd7 {[%clk 0:02:47.9]} 15. Bf4 {[%clk
0:01:40.4]} 15... Rfe8 {[%clk 0:02:38.4]} 16. Bxd6 {[%clk 0:01:35.9]} 16... Qxd6
{[%clk 0:02:38.3]} 17. Rae1 {[%clk 0:01:35.2]} 17... b5 {[%clk 0:02:27.5]} 18.
Nf4 {[%clk 0:01:29.9]} 18... g5 {[%clk 0:02:11.3]} 19. Ng2 {[%clk 0:01:25.3]}
19... Nb6 {[%clk 0:02:05.5]} 20. Qd1 {[%clk 0:01:09.2]} 20... Nc4 {[%clk
0:02:02.5]} 21. Qc1 {[%clk 0:01:09.4]} 21... g4 {[%clk 0:02:00.1]} 22. fxg4
{[%clk 0:00:48]} 22... Nxg4 {[%clk 0:01:58]} 23. b3 {[%clk 0:00:48.3]} 23... Nb6
{[%clk 0:01:53.6]} 24. Qg5 {[%clk 0:00:48.2]} 24... Nf6 {[%clk 0:01:47.9]} 25.
Nh4 {[%clk 0:00:42.4]} 25... Ne4 {[%clk 0:01:39.4]} 26. Bxe4 {[%clk 0:00:37.5]}
26... dxe4 {[%clk 0:01:39]} 27. Nf5 {[%clk 0:00:35.1]} 27... Qg6 {[%clk
0:01:38.7]} 28. Qxg6 {[%clk 0:00:33.3]} 28... fxg6 {[%clk 0:01:38.7]} 29. Nd6
{[%clk 0:00:33.7]} 29... Re6 {[%clk 0:01:36.1]} 30. Nb7 {[%clk 0:00:23.8]} 30...
Nd7 {[%clk 0:01:27.6]} 31. Rf4 {[%clk 0:00:19.8]} 31... Rae8 {[%clk 0:01:23.9]}
32. Kf2 {[%clk 0:00:18.7]} 32... R6e7 {[%clk 0:00:57.3]} 33. Nd6 {[%clk
0:00:17.3]} 33... Rd8 {[%clk 0:00:53.6]} 34. Rexe4 {[%clk 0:00:13.9]} 34... Rxe4
{[%clk 0:00:51]} 35. Nxe4 {[%clk 0:00:14.3]} 35... Re8 {[%clk 0:00:50]} 36. Nd6
{[%clk 0:00:12.7]} 36... Re6 {[%clk 0:00:49.5]} 37. Nb7 {[%clk 0:00:11.1]} 37...
g5 {[%clk 0:00:42.7]} 38. Rf3 {[%clk 0:00:09.6]} 38... g4 {[%clk 0:00:38.5]} 39.
Re3 {[%clk 0:00:09.6]} 39... Rf6+ {[%clk 0:00:36.2]} 40. Kg2 {[%clk 0:00:09.3]}
40... Kf8 {[%clk 0:00:31.3]} 41. Nd8 {[%clk 0:00:08.7]} 41... Rd6 {[%clk
0:00:24.1]} 42. Ne6+ {[%clk 0:00:08.2]} 42... Kf7 {[%clk 0:00:22.4]} 43. Ng5+
{[%clk 0:00:08]} 43... Kg6 {[%clk 0:00:22.6]} 44. Ne4 {[%clk 0:00:07.8]} 44...
Re6 {[%clk 0:00:22.7]} 45. Kf2 {[%clk 0:00:07.9]} 45... Re8 {[%clk 0:00:21.4]}
46. Nd6 {[%clk 0:00:06.8]} 46... Rf8+ {[%clk 0:00:21.2]} 47. Kg2 {[%clk
0:00:07.1]} 47... Nf6 {[%clk 0:00:21.4]} 48. Re6 {[%clk 0:00:06.6]} 48... Kh7
{[%clk 0:00:18.6]} 49. Ne4 {[%clk 0:00:05.2]} 49... Nd5 {[%clk 0:00:16.4]} 50.
Ng5+ {[%clk 0:00:04.8]} 50... Kg8 {[%clk 0:00:16]} 51. c4 {[%clk 0:00:03.3]}
51... bxc4 {[%clk 0:00:15.1]} 52. bxc4 {[%clk 0:00:04.1]} 52... Nb6 {[%clk
0:00:15.2]} 53. Rxc6 {[%clk 0:00:03.9]} 53... Rd8 {[%clk 0:00:13.9]} 54. d5
{[%clk 0:00:03.5]} 54... Re8 {[%clk 0:00:13.5]} 55. h3 {[%clk 0:00:03.9]} 55...
Kf8 {[%clk 0:00:13.4]} 56. hxg4 {[%clk 0:00:03.8]} 56... Re2+ {[%clk 0:00:13.1]}
57. Kf3 {[%clk 0:00:04.4]} 57... Rxa2 {[%clk 0:00:12.8]} 58. Rc7 {[%clk
0:00:04.8]} 58... Ra3+ {[%clk 0:00:11.6]} 59. Kf4 {[%clk 0:00:04.9]} 59... Rc3
{[%clk 0:00:12]} 60. Ne6+ {[%clk 0:00:05]} 60... Kg8 {[%clk 0:00:10.9]} 61.
Rxg7+ {[%clk 0:00:03]} 61... Kh8 {[%clk 0:00:10.3]} 62. Rc7 {[%clk 0:00:03.3]}
62... Kg8 {[%clk 0:00:07.9]} 63. Ke5 {[%clk 0:00:02.9]} 63... Rxc4 {[%clk
0:00:04]} 64. Rxa7 {[%clk 0:00:01.8]} 64... Rxg4 {[%clk 0:00:02.6]} 65. Rb7
{[%clk 0:00:01.7]} 65... Nc4+ {[%clk 0:00:01.6]} 66. Kf6 {[%clk 0:00:01.2]}
66... Rxg3 {[%clk 0:00:01.5]} 0-1

[Event "*** Titled Tuesday Blitz"]
[Site "Chess.com"]
[Date "2021.03.30"]
[Round "4"]
[White "Nachsueb"]
[Black "Trickov"]
[Result "0-1"]
[WhiteElo "2160"]
[BlackElo "2411"]
[TimeControl "180+1"]
[EndTime "10:40:45 PDT"]
[Termination "Trickov won by checkmate"]

1. d4 {[%clk 0:03:00.9]} 1... d5 {[%clk 0:02:55.3]} 2. c4 {[%clk 0:03:01.2]}
2... c6 {[%clk 0:02:55]} 3. Nf3 {[%clk 0:03:01.1]} 3... Nf6 {[%clk 0:02:50.3]}
4. Nc3 {[%clk 0:03:01.3]} 4... dxc4 {[%clk 0:02:49]} 5. a4 {[%clk 0:03:00.7]}
5... Bf5 {[%clk 0:02:48.2]} 6. e3 {[%clk 0:03:01.1]} 6... e6 {[%clk 0:02:48.4]}
7. Bxc4 {[%clk 0:03:01.3]} 7... Bb4 {[%clk 0:02:49]} 8. O-O {[%clk 0:03:01.8]}
8... O-O {[%clk 0:02:49.6]} 9. Nh4 {[%clk 0:03:01.6]} 9... Bg4 {[%clk
0:02:49.4]} 10. f3 {[%clk 0:03:01.9]} 10... Bh5 {[%clk 0:02:50]} 11. g4 {[%clk
0:03:02.1]} 11... Nd5 {[%clk 0:02:50.6]} 12. Ng2 {[%clk 0:03:01.5]} 12... Bg6
{[%clk 0:02:50.8]} 13. Bd2 {[%clk 0:02:59.8]} 13... a5 {[%clk 0:02:48.1]} 14. e4
{[%clk 0:02:46.1]} 14... Nb6 {[%clk 0:02:46.9]} 15. Bd3 {[%clk 0:02:30.5]} 15...
Qxd4+ {[%clk 0:02:40.7]} 16. Be3 {[%clk 0:02:30.6]} 16... Qd8 {[%clk 0:02:40.4]}
17. Qe2 {[%clk 0:02:27.8]} 17... N8d7 {[%clk 0:02:39.3]} 18. f4 {[%clk 0:02:25]}
18... f6 {[%clk 0:02:27.2]} 19. Rfd1 {[%clk 0:02:23.7]} 19... Qe7 {[%clk
0:02:26.5]} 20. Qf2 {[%clk 0:02:17.3]} 20... Bc5 {[%clk 0:02:24.3]} 21. f5
{[%clk 0:01:48.6]} 21... Bf7 {[%clk 0:02:21.1]} 22. h4 {[%clk 0:01:38.2]} 22...
Bxe3 {[%clk 0:02:13.9]} 23. Nxe3 {[%clk 0:01:39.1]} 23... Ne5 {[%clk 0:02:08.2]}
24. Be2 {[%clk 0:01:38.8]} 24... Qb4 {[%clk 0:01:57.1]} 25. Rab1 {[%clk
0:01:28.8]} 25... Rad8 {[%clk 0:01:47.4]} 26. Nc2 {[%clk 0:01:13.1]} 26... Qb3
{[%clk 0:01:34.1]} 27. Na1 {[%clk 0:01:10.9]} 27... Qb4 {[%clk 0:01:31.7]} 28.
Nc2 {[%clk 0:01:10.7]} 28... Rxd1+ {[%clk 0:01:31.3]} 29. Nxd1 {[%clk
0:01:09.6]} 29... Qb3 {[%clk 0:01:20.3]} 30. Na1 {[%clk 0:01:09.1]} 30... Qb4
{[%clk 0:01:13.2]} 31. Nc2 {[%clk 0:01:08.7]} 31... Qxa4 {[%clk 0:01:13.1]} 32.
fxe6 {[%clk 0:00:58.2]} 32... Bxe6 {[%clk 0:01:12.6]} 33. Nd4 {[%clk 0:00:57.6]}
33... Bxg4 {[%clk 0:01:06.8]} 34. b3 {[%clk 0:00:44.6]} 34... Qb4 {[%clk
0:00:58]} 35. Nc2 {[%clk 0:00:44.3]} 35... Qd2 {[%clk 0:00:57.7]} 36. Bxg4
{[%clk 0:00:40.8]} 36... Qxf2+ {[%clk 0:00:56.7]} 37. Nxf2 {[%clk 0:00:41.7]}
37... Nxg4 {[%clk 0:00:47.6]} 38. Nxg4 {[%clk 0:00:42.6]} 38... Rd8 {[%clk
0:00:47.1]} 39. Nge3 {[%clk 0:00:39.2]} 39... Rd3 {[%clk 0:00:39.5]} 40. Kf2
{[%clk 0:00:38.2]} 40... Nd7 {[%clk 0:00:35.4]} 41. Ke2 {[%clk 0:00:38.4]} 41...
Ne5 {[%clk 0:00:35.5]} 42. Ne1 {[%clk 0:00:30.6]} 42... Rd4 {[%clk 0:00:30.9]}
43. Nf5 {[%clk 0:00:15.8]} 43... Rxe4+ {[%clk 0:00:29.6]} 44. Kf2 {[%clk
0:00:16.1]} 44... Rf4+ {[%clk 0:00:29.3]} 45. Ke3 {[%clk 0:00:16.5]} 45... Rxf5
{[%clk 0:00:29.3]} 46. Ke4 {[%clk 0:00:17.2]} 46... Rh5 {[%clk 0:00:28.6]} 47.
Ng2 {[%clk 0:00:16.5]} 47... Ng6 {[%clk 0:00:25.1]} 48. Rd1 {[%clk 0:00:16.3]}
48... Re5+ {[%clk 0:00:23.9]} 49. Kf3 {[%clk 0:00:16]} 49... Rd5 {[%clk
0:00:23.7]} 50. Re1 {[%clk 0:00:15.3]} 50... Kf7 {[%clk 0:00:22.4]} 51. Ra1
{[%clk 0:00:09]} 51... Rb5 {[%clk 0:00:21.7]} 52. Ra3 {[%clk 0:00:07.4]} 52...
b6 {[%clk 0:00:20.8]} 53. Ne3 {[%clk 0:00:07.6]} 53... Nxh4+ {[%clk 0:00:20.1]}
54. Ke4 {[%clk 0:00:07.5]} 54... Rb4+ {[%clk 0:00:19.2]} 55. Kd3 {[%clk
0:00:07.6]} 55... g6 {[%clk 0:00:18.3]} 56. Nc2 {[%clk 0:00:07.9]} 56... Rg4
{[%clk 0:00:16.7]} 57. Ra1 {[%clk 0:00:08]} 57... Nf5 {[%clk 0:00:16]} 58. Re1
{[%clk 0:00:07.7]} 58... Rg3+ {[%clk 0:00:15.8]} 59. Kd2 {[%clk 0:00:07.4]}
59... Rxb3 {[%clk 0:00:15.7]} 60. Rh1 {[%clk 0:00:08]} 60... h5 {[%clk
0:00:15.1]} 61. Re1 {[%clk 0:00:07.3]} 61... Rb5 {[%clk 0:00:15]} 62. Kd3 {[%clk
0:00:07.3]} 62... Rd5+ {[%clk 0:00:15.1]} 63. Kc3 {[%clk 0:00:07.3]} 63... b5
{[%clk 0:00:15]} 64. Kb3 {[%clk 0:00:07.2]} 64... Rd3+ {[%clk 0:00:14.6]} 65.
Kb2 {[%clk 0:00:07.3]} 65... Nd4 {[%clk 0:00:14.3]} 66. Ne3 {[%clk 0:00:07.1]}
66... a4 {[%clk 0:00:13.4]} 67. Ka2 {[%clk 0:00:07.3]} 67... b4 {[%clk
0:00:13.3]} 68. Nd1 {[%clk 0:00:06]} 68... Rd2+ {[%clk 0:00:13.3]} 69. Kb1
{[%clk 0:00:04.6]} 69... a3 {[%clk 0:00:13.5]} 70. Ne3 {[%clk 0:00:04.2]} 70...
a2+ {[%clk 0:00:13.1]} 71. Ka1 {[%clk 0:00:03.1]} 71... Nb3# {[%clk 0:00:13.3]}
0-1

[Event "*** Titled Tuesday Blitz"]
[Site "Chess.com"]
[Date "2021.03.30"]
[Round "4"]
[White "eldur16"]
[Black "eCztery"]
[Result "1/2-1/2"]
[WhiteElo "2586"]
[BlackElo "2383"]
[TimeControl "180+1"]
[EndTime "10:40:46 PDT"]
[Termination "Game drawn by repetition"]

1. Nf3 {[%clk 0:03:00.9]} 1... c5 {[%clk 0:02:51.5]} 2. g3 {[%clk 0:03:00.1]}
2... Nf6 {[%clk 0:02:49.4]} 3. Bg2 {[%clk 0:03:00]} 3... Nc6 {[%clk 0:02:49.3]}
4. O-O {[%clk 0:02:59]} 4... g6 {[%clk 0:02:46.6]} 5. b3 {[%clk 0:02:56.5]} 5...
Bg7 {[%clk 0:02:44.8]} 6. Bb2 {[%clk 0:02:56.5]} 6... O-O {[%clk 0:02:44]} 7. c4
{[%clk 0:02:56]} 7... Re8 {[%clk 0:02:40.5]} 8. d3 {[%clk 0:02:53.3]} 8... e5
{[%clk 0:02:37.9]} 9. Nc3 {[%clk 0:02:52]} 9... d6 {[%clk 0:02:34.3]} 10. Nd2
{[%clk 0:02:47.6]} 10... Be6 {[%clk 0:02:27.8]} 11. Nde4 {[%clk 0:02:45]} 11...
Nxe4 {[%clk 0:02:27.8]} 12. dxe4 {[%clk 0:02:40.4]} 12... Bf8 {[%clk 0:02:14.8]}
13. e3 {[%clk 0:02:39.4]} 13... a6 {[%clk 0:02:09.1]} 14. Qd2 {[%clk 0:02:37.9]}
14... Rb8 {[%clk 0:02:07.8]} 15. Nd5 {[%clk 0:02:17.2]} 15... b5 {[%clk
0:01:58.5]} 16. Rac1 {[%clk 0:02:16.9]} 16... b4 {[%clk 0:01:58]} 17. f4 {[%clk
0:02:14.1]} 17... f6 {[%clk 0:01:45.1]} 18. Rf2 {[%clk 0:02:13.4]} 18... Bg7
{[%clk 0:01:33.5]} 19. Rcf1 {[%clk 0:02:12.4]} 19... Rf8 {[%clk 0:01:33.9]} 20.
h4 {[%clk 0:02:11.6]} 20... Bg4 {[%clk 0:01:29.2]} 21. Kh2 {[%clk 0:02:10.7]}
21... Qd7 {[%clk 0:01:27.2]} 22. f5 {[%clk 0:01:56.7]} 22... gxf5 {[%clk
0:01:12.8]} 23. exf5 {[%clk 0:01:55.9]} 23... h5 {[%clk 0:01:10.5]} 24. Bh3
{[%clk 0:01:43.3]} 24... Bxh3 {[%clk 0:01:08.2]} 25. Kxh3 {[%clk 0:01:43]} 25...
Ne7 {[%clk 0:01:09.1]} 26. Nxe7+ {[%clk 0:01:31.9]} 26... Qxe7 {[%clk 0:01:10]}
27. Qd1 {[%clk 0:01:25]} 27... Qe8 {[%clk 0:01:03.1]} 28. Qxd6 {[%clk
0:01:22.4]} 28... Rd8 {[%clk 0:01:00.4]} 29. Qxa6 {[%clk 0:01:20]} 29... Qd7
{[%clk 0:00:53.7]} 30. Qb5 {[%clk 0:01:02.2]} 30... Qxb5 {[%clk 0:00:32.4]} 31.
cxb5 {[%clk 0:01:01.7]} 31... Rd3 {[%clk 0:00:33.3]} 32. e4 {[%clk 0:00:57.4]}
32... Rb8 {[%clk 0:00:32.8]} 33. Rc2 {[%clk 0:00:53]} 33... Rxb5 {[%clk
0:00:32.8]} 34. Bc1 {[%clk 0:00:52.7]} 34... Bf8 {[%clk 0:00:30.8]} 35. Re1
{[%clk 0:00:51.1]} 35... Rb7 {[%clk 0:00:25.1]} 36. Be3 {[%clk 0:00:50.2]} 36...
Rg7 {[%clk 0:00:24.7]} 37. Kg2 {[%clk 0:00:45]} 37... Kh7 {[%clk 0:00:23.2]} 38.
Kf2 {[%clk 0:00:42.5]} 38... Rgd7 {[%clk 0:00:18.1]} 39. Ree2 {[%clk 0:00:41.7]}
39... Rc7 {[%clk 0:00:17.4]} 40. Red2 {[%clk 0:00:40.9]} 40... Rxd2+ {[%clk
0:00:14.9]} 41. Rxd2 {[%clk 0:00:40.4]} 41... c4 {[%clk 0:00:15.4]} 42. bxc4
{[%clk 0:00:37.8]} 42... Rxc4 {[%clk 0:00:16.3]} 43. Rd7+ {[%clk 0:00:31]} 43...
Kg8 {[%clk 0:00:15.2]} 44. Kf3 {[%clk 0:00:27.9]} 44... Rc3 {[%clk 0:00:15.8]}
45. Rd8 {[%clk 0:00:23.5]} 45... Kf7 {[%clk 0:00:15.8]} 46. Ke2 {[%clk
0:00:20.9]} 46... Rc2+ {[%clk 0:00:14.3]} 47. Rd2 {[%clk 0:00:20.6]} 47... Rc3
{[%clk 0:00:14.1]} 48. Rb2 {[%clk 0:00:20]} 48... Ke8 {[%clk 0:00:12]} 49. Bf2
{[%clk 0:00:20]} 49... Rc4 {[%clk 0:00:11.8]} 50. Kd3 {[%clk 0:00:19.5]} 50...
Rc3+ {[%clk 0:00:11.7]} 51. Kd2 {[%clk 0:00:19.4]} 51... Rc4 {[%clk 0:00:11.5]}
52. Kd3 {[%clk 0:00:18.3]} 52... Rc3+ {[%clk 0:00:12]} 53. Ke2 {[%clk
0:00:18.2]} 53... Rc4 {[%clk 0:00:12.9]} 54. Kf3 {[%clk 0:00:17.5]} 54... Rc3+
{[%clk 0:00:13.4]} 55. Kg2 {[%clk 0:00:16.7]} 55... Kd7 {[%clk 0:00:13.9]} 56.
Kf1 {[%clk 0:00:15.8]} 56... Kc6 {[%clk 0:00:14.4]} 57. Rd2 {[%clk 0:00:15.5]}
57... Kb5 {[%clk 0:00:14.6]} 58. Ke2 {[%clk 0:00:14.5]} 58... Ka4 {[%clk
0:00:14.7]} 59. Rd8 {[%clk 0:00:13.7]} 59... Bc5 {[%clk 0:00:12.5]} 60. Ra8+
{[%clk 0:00:13.5]} 60... Kb5 {[%clk 0:00:12.3]} 61. Bxc5 {[%clk 0:00:13.3]}
61... Rxc5 {[%clk 0:00:10.5]} 62. Rf8 {[%clk 0:00:12.2]} 62... Rc2+ {[%clk
0:00:10.5]} 63. Kd3 {[%clk 0:00:12]} 63... Rxa2 {[%clk 0:00:11.4]} 64. Rxf6
{[%clk 0:00:11.3]} 64... Ra3+ {[%clk 0:00:12]} 65. Kc2 {[%clk 0:00:11]} 65...
Rxg3 {[%clk 0:00:12.9]} 66. Re6 {[%clk 0:00:10.7]} 66... Kc4 {[%clk 0:00:13.2]}
67. Rxe5 {[%clk 0:00:10.7]} 67... Rg2+ {[%clk 0:00:13.7]} 68. Kd1 {[%clk
0:00:10.5]} 68... b3 {[%clk 0:00:13.9]} 69. Re8 {[%clk 0:00:10.4]} 69... b2
{[%clk 0:00:14.3]} 70. Rb8 {[%clk 0:00:10.2]} 70... Kd3 {[%clk 0:00:14.4]} 71.
Rb3+ {[%clk 0:00:07.1]} 71... Kc4 {[%clk 0:00:14]} 72. Rb8 {[%clk 0:00:06.9]}
72... Kd3 {[%clk 0:00:13.4]} 73. Rb3+ {[%clk 0:00:06.4]} 73... Kc4 {[%clk
0:00:13.7]} 74. Rb8 {[%clk 0:00:06.4]} 1/2-1/2